bitfinex/quotes_SOLUSD_20240920
["timestamp","ask_amount","ask_price","bid_price","bid_amount"]
[1726839871922,16.211,147.33,147.24,0.3246645]
[1726839872836,16.211,147.33,147.25,1.35766979]
[1726839873436,16.211,147.33,147.24,0.3246645]
[1726839874137,16.211,147.33,147.25,50.0]
[1726839874928,16.211,147.33,147.24,24.1015485]
[1726839875314,16.211,147.33,147.25,50.0]
[1726839876323,22.3234,147.37,147.27,50.0]
[1726839876666,22.3234,147.37,147.24,30.2872385]
[1726839876667,22.3234,147.41,147.31,50.0]
[1726839876834,22.3234,147.41,147.32,30.89748906]
[1726839877031,7.03488496,147.38,147.29,80.89748906]
[1726839877243,1.69632717,147.37,147.26,23.776884]
[1726839877424,6.786,147.37,147.25,50.0]
[1726839877623,8.4828699,147.36,147.25,50.0]
[1726839877823,6.7857,147.37,147.25,50.0]
[1726839878222,7.03623105,147.38,147.27,50.0]
[1726839878425,1.69657268,147.37,147.27,50.0]
[1726839878731,8.48217268,147.37,147.25,50.0]
[1726839878932,6.7856,147.37,147.25,50.0]
[1726839879238,16.0425,147.35,147.25,50.0]
[1726839880130,1.69679449,147.34,147.24,37.28235356]
[1726839880326,1.69679449,147.34,147.24,0.3246645]
[1726839880327,6.2809,147.33,147.24,0.3246645]
[1726839881042,6.2809,147.33,147.24,50.3246645]
[1726839882938,6.2809,147.33,147.25,1.35756528]
[1726839883141,6.2809,147.33,147.25,25.13444928]
[1726839883430,16.0425,147.35,147.26,50.0]
[1726839884152,16.0425,147.35,147.27,19.38061284]
[1726839886220,16.0425,147.35,147.26,0.2385267]
[1726839886221,16.0425,147.35,147.29,19.38061284]
[1726839886422,23.09735365,147.38,147.31,19.38061284]
[1726839886736,23.09735365,147.38,147.3,51.35721803]
[1726839886737,16.0611226,147.38,147.33,19.38061284]
[1726839886927,16.0611226,147.38,147.34,1.35693106]
[1726839887124,16.0611226,147.38,147.33,19.38061284]
[1726839887637,16.0611226,147.38,147.29,19.38061284]
[1726839888231,16.0611226,147.38,147.28,56.2873]
[1726839888437,17.75763411,147.38,147.28,50.0]
[1726839888828,16.0611226,147.38,147.29,19.38061284]
[1726839891426,22.8466226,147.38,147.29,19.38061284]
[1726839891619,16.0611226,147.38,147.29,19.38061284]
[1726839893047,16.0611226,147.38,147.3,1.35720629]
[1726839893628,16.0611226,147.38,147.29,19.38061284]
[1726839897567,16.0611226,147.38,147.3,1.35711615]
[1726839897852,16.0611226,147.38,147.31,20.73764255]
[1726839899122,16.0611226,147.38,147.31,19.38061284]
[1726839899336,16.0611226,147.38,147.28,69.38061284]
[1726839900749,1.69655112,147.37,147.28,69.38061284]
[1726839901047,6.7861,147.36,147.28,19.38061284]
[1726839901231,22.5608,147.35,147.26,0.2385267]
[1726839901629,22.5608,147.35,147.28,19.38061284]
[1726839901834,22.5608,147.35,147.29,1.35725011]
[1726839902042,15.9056,147.35,147.3,70.73785999]
[1726839902244,15.9056,147.35,147.3,19.38061284]
[1726839902551,15.9056,147.35,147.31,1.35713439]
[1726839902932,15.9056,147.35,147.3,69.38061284]
[1726839903137,15.9056,147.35,147.31,1.35713577]
[1726839903326,15.9056,147.35,147.3,69.38061284]
[1726839903659,0.0425226,147.38,147.32,69.38061284]
[1726839903832,0.0425226,147.38,147.33,1.3568453]
[1726839904853,0.0425226,147.38,147.34,19.38061284]
[1726839905451,0.0425226,147.38,147.32,69.38061284]
[1726839905651,0.0425226,147.38,147.3,69.38061284]
[1726839906851,0.0425226,147.38,147.32,19.38061284]
[1726839907056,0.0425226,147.38,147.3,69.38061284]
[1726839907242,0.0425226,147.38,147.3,19.38061284]
[1726839907449,0.0425226,147.38,147.28,69.38061284]
[1726839907755,6.7871,147.34,147.26,0.2385267]
[1726839908442,6.787,147.34,147.26,0.2385267]
[1726839908631,6.7874,147.33,147.26,0.2385267]
[1726839908833,6.5761,147.31,147.26,0.2385267]
[1726839909146,16.3505,147.29,147.26,0.2385267]
[1726839912856,24.83742305,147.29,147.26,0.2385267]
[1726839913349,16.3505,147.29,147.26,0.2385267]
[1726839914263,6.5761,147.31,147.26,0.2385267]
[1726839914437,15.1075,147.33,147.26,19.61913954]
[1726839915361,15.1075,147.33,147.26,0.2385267]
[1726839915732,1.69715395,147.32,147.26,0.2385267]
[1726839916056,8.48515395,147.32,147.26,0.2385267]
[1726839916357,6.788,147.32,147.26,0.2385267]
[1726839917038,6.7889,147.3,147.26,0.2385267]
[1726839917240,15.1075,147.33,147.26,0.2385267]
[1726839917241,6.7885,147.31,147.26,0.2385267]
[1726839917442,6.788,147.32,147.26,0.2385267]
[1726839917864,6.7888,147.3,147.26,0.2385267]
[1726839918043,6.7885,147.31,147.26,0.2385267]
[1726839919641,1.6975729,147.3,147.26,0.2385267]
[1726839919844,6.7893,147.29,147.26,0.2385267]
[1726839920651,1.69772103,147.28,147.26,0.2385267]
[1726839920852,29.33119,147.27,147.26,0.2385267]
[1726839921862,29.2057,147.27,147.26,0.2385267]
[1726839922053,23.902374,147.26,147.21,0.2810493]
[1726839922365,6.7919,147.24,147.21,0.2810493]
[1726839922667,6.7912,147.25,147.21,0.2810493]
[1726839922843,22.4155,147.27,147.21,0.2810493]
[1726839923046,29.2057,147.27,147.21,0.2810493]
[1726839923242,16.0267,147.27,147.21,0.2810493]
[1726839925759,8.48848834,147.26,147.21,0.2810493]
[1726839925967,1.69768834,147.26,147.21,0.2810493]
[1726839926348,17.72458207,147.27,147.21,0.2810493]
[1726839926954,16.0267,147.27,147.21,0.2810493]
[1726839927769,16.0267,147.27,147.22,1.3581323]
[1726839928067,1.69766573,147.26,147.21,0.2810493]
[1726839929070,16.0267,147.27,147.21,0.2810493]
[1726839929451,30.182274,147.26,147.21,0.2810493]
[1726839929652,6.7922,147.23,147.21,0.2810493]
[1726839929859,48.05179855,147.22,147.21,0.2810493]
[1726839930957,22.4509,147.22,147.21,0.2810493]
[1726839931184,23.902374,147.21,147.16,0.2810493]
[1726839931346,6.7943,147.19,147.16,0.2810493]
[1726839931551,1.69896245,147.18,147.16,0.2810493]
[1726839932250,8.49336245,147.18,147.16,0.2810493]
[1726839932471,1.69896067,147.2,147.16,0.2810493]
[1726839932651,21.7389,147.22,147.16,0.2810493]
[1726839932856,6.7936,147.2,147.16,0.2810493]
[1726839933066,8.49252361,147.19,147.16,0.2810493]
[1726839933370,8.49335871,147.18,147.16,0.2810493]
[1726839933565,6.7948,147.17,147.16,0.2810493]
[1726839933953,6.92029,147.17,147.16,0.2810493]
[1726839934159,33.420168,147.17,147.16,0.2810493]
[1726839935471,6.92029,147.17,147.16,0.2810493]
[1726839935761,6.7948,147.17,147.16,0.2810493]
[1726839936097,6.7944,147.18,147.16,0.2810493]
[1726839936274,38.7206,147.22,147.16,0.2810493]
[1726839936467,6.7939,147.19,147.16,0.2810493]
[1726839936665,1.69889029,147.18,147.16,0.2810493]
[1726839937073,1.69889017,147.21,147.16,0.2810493]
[1726839937578,6.794,147.19,147.16,0.2810493]
[1726839937792,1.69889159,147.18,147.16,0.2810493]
[1726839938472,6.7948,147.17,147.16,0.2810493]
[1726839939198,8.49339159,147.18,147.16,0.2810493]
[1726839939484,0.12549,147.19,147.16,0.2810493]
[1726839939985,1.69910896,147.18,147.16,0.2810493]
[1726839940286,6.7948,147.17,147.16,0.2810493]
[1726839940469,8.49360896,147.18,147.16,0.2810493]
[1726839941162,6.7944,147.18,147.16,0.2810493]
[1726839942480,7.05324992,147.2,147.16,0.2810493]
[1726839942680,15.6584,147.22,147.16,0.2810493]
[1726839942881,22.3138,147.26,147.16,0.2810493]
[1726839943076,9.512665,147.25,147.16,0.2810493]
[1726839943274,6.7912,147.25,147.16,0.2810493]
[1726839943674,36.15503247,147.26,147.16,0.2810493]
[1726839943874,29.49073247,147.26,147.16,0.2810493]
[1726839944075,22.69993247,147.26,147.16,0.2810493]
[1726839944584,7.05043247,147.26,147.16,0.2810493]
[1726839944788,7.05043247,147.26,147.2,15.7704]
[1726839944992,6.6879493,147.33,147.21,1.35797569]
[1726839945293,7.04520268,147.32,147.25,6.1906]
[1726839945588,0.2810493,147.33,147.25,6.1906]
[1726839946293,0.3274686,147.34,147.25,6.1906]
[1726839946589,0.3274686,147.34,147.26,1.35753398]
[1726839946770,0.3274686,147.34,147.26,50.0]
[1726839948776,0.3274686,147.34,147.29,15.6938]
[1726839950372,0.3274686,147.34,147.3,79.853084]
[1726839952489,0.3274686,147.34,147.3,6.0762]
[1726839954004,0.3274686,147.34,147.31,1.35720833]
[1726839954495,0.3274686,147.34,147.3,63.40252939]
[1726839955084,0.3274686,147.34,147.3,6.0762]
[1726839955282,0.3274686,147.34,147.31,1.35713303]
[1726839955685,0.3274686,147.34,147.3,6.0762]
[1726839959375,0.3274686,147.34,147.31,1.35733381]
[1726839959589,0.3274686,147.34,147.32,1.35723803]
[1726839959875,0.3274686,147.34,147.33,1.35717608]
[1726839960081,0.3274686,147.34,147.3,6.0762]
[1726839960280,0.3274686,147.34,147.3,56.0762]
[1726839960696,0.3274686,147.34,147.3,6.0762]
[1726839961578,0.3274686,147.34,147.31,82.44870479]
[1726839961878,0.2475747,147.38,147.31,82.44870479]
[1726839961879,0.2475747,147.38,147.36,21.8763]
[1726839962198,0.2475747,147.38,147.36,52.96775292]
[1726839962989,0.2475747,147.38,147.37,73.776884]
[1726839963882,0.2475747,147.42,147.4,23.776884]
[1726839964099,0.2475747,147.42,147.41,23.776884]
[1726839964398,0.2475747,147.42,147.41,73.902374]
[1726839964581,0.2475747,147.42,147.41,80.314274]
[1726839964782,0.0686858,147.44,147.42,33.159674]
[1726839965091,0.0686858,147.44,147.43,104.99382692]
[1726839965596,0.0686858,147.44,147.43,23.776884]
[1726839966680,0.0686858,147.44,147.43,75.25827872]
[1726839966880,0.1030461,147.46,147.43,104.86833692]
[1726839967084,0.2379604,147.48,147.47,50.0]
[1726839967398,0.2379604,147.48,147.47,73.776884]
[1726839967785,0.2379604,147.48,147.47,73.902374]
[1726839967990,0.2379604,147.48,147.47,75.25781141]
[1726839968485,0.2379604,147.48,147.47,73.902374]
[1726839968880,0.2379604,147.48,147.44,20.0]
[1726839968881,0.2379604,147.48,147.44,0.12549]
[1726839969080,0.2379604,147.48,147.45,50.0]
[1726839969391,0.2379604,147.48,147.46,0.12549]
[1726839969705,0.2379604,147.48,147.47,50.0]
[1726839970384,0.2379604,147.48,147.47,73.776884]
[1726839970887,0.2379604,147.48,147.47,75.25786742]
[1726839971298,0.2379604,147.48,147.47,73.902374]
[1726839971807,0.2379604,147.48,147.47,80.002074]
[1726839972600,0.2379604,147.48,147.47,131.09352692]
[1726839972902,0.0686858,147.52,147.51,50.12549]
[1726839973310,0.0686858,147.52,147.51,73.776884]
[1726839973489,0.0686858,147.52,147.48,23.902374]
[1726839973804,0.0686858,147.52,147.49,50.0]
[1726839974102,0.0686858,147.52,147.5,23.776884]
[1726839974701,0.0686858,147.52,147.48,23.902374]
[1726839974891,0.0686858,147.52,147.47,56.0997]
[1726839975496,0.0686858,147.52,147.47,6.0997]
[1726839975999,0.0686858,147.52,147.47,56.0997]
[1726839976587,0.0686858,147.52,147.47,6.0997]
[1726839977088,0.0686858,147.52,147.49,50.0]
[1726839977809,0.0686858,147.52,147.47,56.0997]
[1726839978301,0.0686858,147.52,147.48,23.776884]
[1726839980192,0.0686858,147.52,147.49,51.3553693]
[1726839980414,0.0686858,147.52,147.5,23.776884]
[1726839980787,0.0686858,147.52,147.49,50.0]
[1726839980995,0.0686858,147.52,147.48,0.12549]
[1726839981192,0.0686858,147.52,147.48,23.776884]
[1726839982995,0.0686858,147.52,147.47,6.0997]
[1726839984116,0.0686858,147.52,147.48,25.13239481]
[1726839984389,0.0686858,147.52,147.48,23.776884]
[1726839984594,0.0686858,147.52,147.47,56.0997]
[1726839984795,0.0686858,147.52,147.47,6.0997]
[1726839985325,0.0686858,147.52,147.48,23.776884]
[1726839986120,0.0686858,147.52,147.47,56.0997]
[1726839986733,0.0686858,147.52,147.49,50.0]
[1726839986900,0.0686858,147.52,147.5,25.13213656]
[1726839987108,0.0686858,147.52,147.51,73.902374]
[1726839989906,0.0686858,147.52,147.51,75.25751648]
[1726839990096,0.0686858,147.52,147.51,104.80147688]
[1726839991519,0.4624307,147.55,147.53,50.0]
[1726839992024,0.4624307,147.55,147.54,23.776884]
[1726839994209,0.4624307,147.55,147.54,56.15633518]
[1726839994410,0.4624307,147.55,147.54,63.48266457]
[1726839994723,0.4280704,147.61,147.56,50.0]
[1726839994910,0.4280704,147.61,147.57,1.35467889]
[1726839995107,0.4280704,147.61,147.58,23.776884]
[1726839995310,0.4280704,147.61,147.58,73.776884]
[1726839995495,0.4280704,147.61,147.59,1.35447059]
[1726839995899,0.4280704,147.61,147.6,106.15578883]
[1726839996127,0.1030461,147.64,147.62,50.0]
[1726839996307,0.1030461,147.64,147.63,23.776884]
[1726839996626,0.1030461,147.64,147.6,81.02459288]
[1726839996825,0.1030461,147.64,147.63,23.902374]
[1726839997121,0.1030461,147.64,147.63,56.15545878]
[1726839998229,0.3593846,147.68,147.66,23.902374]
[1726839998723,0.3593846,147.68,147.67,75.25612374]
[1726839999429,0.3593846,147.68,147.67,75.25601217]
[1726839999837,0.4624307,147.74,147.69,50.0]
[1726840000124,0.4624307,147.74,147.69,104.80147688]
[1726840000313,21.8262,147.8,147.71,50.0]
[1726840000511,21.8262,147.8,147.69,54.80147688]
[1726840000512,0.1030461,147.73,147.69,30.89910288]
[1726840000719,0.1030461,147.73,147.66,50.0]
[1726840000916,0.1030461,147.73,147.64,80.89910288]
[1726840001434,0.1030461,147.73,147.66,50.0]
[1726840001813,0.1030461,147.73,147.67,30.89910288]
[1726840002322,0.1030461,147.73,147.68,50.0]
[1726840002633,0.1030461,147.73,147.67,30.89910288]
[1726840003820,22.7177,147.72,147.63,30.89910288]
[1726840004028,8.46288608,147.71,147.6,80.89910288]
[1726840004220,8.46288608,147.71,147.61,30.0]
[1726840004420,6.771,147.69,147.61,30.0]
[1726840004616,8.46455783,147.68,147.58,50.0]
[1726840004928,6.771,147.69,147.58,50.0]
[1726840005312,0.0454988,147.7,147.6,50.0]
[1726840005511,0.0454988,147.7,147.63,50.0]
[1726840005725,0.0454988,147.7,147.62,30.89910288]
[1726840006028,0.0454988,147.7,147.59,50.0]
[1726840006237,6.8162988,147.7,147.59,50.0]
[1726840006925,0.0454988,147.7,147.59,50.0]
[1726840007434,6.8159988,147.7,147.6,23.902374]
[1726840007634,0.0454988,147.7,147.6,23.902374]
[1726840008526,15.8189,147.69,147.56,30.89910288]
[1726840008742,6.41,147.67,147.55,50.0]
[1726840008913,15.8189,147.62,147.53,50.0]
[1726840009535,15.8189,147.62,147.53,57.32632939]
[1726840009716,15.5991,147.66,147.57,50.0]
[1726840009918,15.5991,147.66,147.58,30.89910288]
[1726840010421,15.5991,147.66,147.6,50.0]
[1726840010618,15.5991,147.66,147.61,30.89910288]
[1726840011815,16.7003988,147.7,147.62,25.13129561]
[1726840012034,16.7003988,147.7,147.62,23.776884]
[1726840012427,16.7003988,147.7,147.61,80.89910288]
[1726840012842,16.7003988,147.7,147.62,1.35420996]
[1726840013019,16.7003988,147.7,147.64,30.89910288]
[1726840013649,16.7003988,147.7,147.65,23.776884]
[1726840014839,0.0454988,147.7,147.67,23.776884]
[1726840015024,0.0454988,147.7,147.69,23.776884]
[1726840015419,0.0454988,147.7,147.68,73.776884]
[1726840015628,0.0454988,147.7,147.68,23.776884]
[1726840015837,0.0454988,147.7,147.68,73.776884]
[1726840016035,0.0454988,147.7,147.68,23.776884]
[1726840017423,0.0454988,147.7,147.69,25.13050896]
[1726840017625,0.0454988,147.7,147.69,23.776884]
[1726840017826,0.0454988,147.7,147.69,25.2560019]
[1726840018121,0.0454988,147.7,147.69,23.902374]
[1726840018924,0.0454988,147.7,147.67,30.89910288]
[1726840019130,0.0454988,147.7,147.68,23.776884]
[1726840019850,0.0454988,147.7,147.69,23.902374]
[1726840020653,0.0454988,147.7,147.65,50.0]
[1726840021026,0.0454988,147.7,147.68,50.0]
[1726840022323,0.0454988,147.7,147.69,23.776884]
[1726840023140,0.0454988,147.7,147.68,23.776884]
[1726840024139,0.0454988,147.7,147.68,73.776884]
[1726840024451,0.0454988,147.7,147.68,23.776884]
[1726840025247,0.0454988,147.7,147.69,20.0]
[1726840025553,0.1030461,147.73,147.7,30.89910288]
[1726840025854,0.1030461,147.73,147.67,30.89910288]
[1726840026027,0.1030461,147.73,147.64,50.0]
[1726840026546,22.738,147.72,147.63,30.89910288]
[1726840027954,1.6926809,147.71,147.63,30.89910288]
[1726840028337,1.6926809,147.71,147.64,23.776884]
[1726840028646,22.738,147.72,147.64,23.776884]
[1726840028647,22.738,147.72,147.64,73.776884]
[1726840028849,22.738,147.72,147.65,0.12549]
[1726840029731,1.69235857,147.71,147.63,30.89910288]
[1726840030258,22.738,147.72,147.63,30.89910288]
[1726840031136,1.69257693,147.71,147.63,30.89910288]
[1726840031335,24.43073896,147.72,147.63,30.89910288]
[1726840031755,1.81822987,147.71,147.6,50.0]
[1726840031960,16.275,147.66,147.56,30.89910288]
[1726840032137,1.69352875,147.65,147.57,30.0]
[1726840032338,1.69352875,147.65,147.55,50.0]
[1726840032533,1.69352875,147.65,147.53,30.89910288]
[1726840032534,6.7738,147.63,147.53,30.89910288]
[1726840032742,23.902374,147.64,147.53,30.89910288]
[1726840032743,6.213,147.61,147.53,30.89910288]
[1726840033239,16.2085,147.6,147.53,30.89910288]
[1726840034133,16.2085,147.6,147.54,1.35514095]
[1726840034332,16.2085,147.6,147.53,30.89910288]
[1726840034556,16.2085,147.6,147.54,23.902374]
[1726840035041,15.2394,147.64,147.56,54.80147688]
[1726840035350,15.2394,147.64,147.56,54.67598688]
[1726840035554,15.2394,147.64,147.51,0.423073]
[1726840035555,1.69355841,147.63,147.51,50.423073]
[1726840035762,8.46735841,147.63,147.51,50.423073]
[1726840035962,6.7738,147.63,147.51,50.423073]
[1726840036165,13.82981672,147.63,147.51,50.423073]
[1726840036357,1.69383461,147.62,147.52,20.0]
[1726840036759,0.12549,147.61,147.52,20.0]
[1726840036943,0.12549,147.61,147.51,0.423073]
[1726840036944,22.1375,147.59,147.51,0.423073]
[1726840037260,8.47019792,147.58,147.51,0.423073]
[1726840037561,0.12549,147.57,147.51,0.423073]
[1726840038259,22.1375,147.59,147.51,0.423073]
[1726840038941,1.69420146,147.58,147.51,0.423073]
[1726840039441,8.47020146,147.58,147.51,0.423073]
[1726840039641,1.69420146,147.58,147.51,0.423073]
[1726840039941,22.1375,147.59,147.51,0.423073]
[1726840040356,22.1375,147.59,147.52,1.35549193]
[1726840040561,22.1375,147.59,147.51,0.423073]
[1726840040740,22.1375,147.59,147.51,24.199957]
[1726840041365,1.69414777,147.58,147.51,0.423073]
[1726840041746,0.12549,147.57,147.51,0.423073]
[1726840042068,15.9889,147.54,147.51,0.423073]
[1726840046157,15.0266,147.58,147.52,56.157016]
[1726840046360,15.0266,147.58,147.52,54.67598688]
[1726840046660,15.0266,147.58,147.51,0.423073]
[1726840047267,15.0266,147.58,147.52,20.12549]
[1726840047564,15.8348,147.62,147.54,20.12549]
[1726840047767,15.8348,147.62,147.57,23.902374]
[1726840047948,15.8348,147.62,147.58,20.0]
[1726840048475,15.8348,147.62,147.56,20.0]
[1726840049072,17.5284055,147.62,147.53,43.902374]
[1726840049365,17.5284055,147.62,147.51,6.738973]
[1726840049366,23.776884,147.61,147.51,20.423073]
[1726840049568,15.8348,147.62,147.51,0.423073]
[1726840049868,6.7749,147.61,147.51,0.423073]
[1726840050070,23.902374,147.6,147.51,0.423073]
[1726840050280,53.853674,147.58,147.51,0.423073]
[1726840050565,23.776884,147.56,147.51,0.423073]
[1726840050748,1.69467684,147.55,147.51,0.423073]
[1726840051147,47.077674,147.58,147.51,0.423073]
[1726840051350,1.69455893,147.57,147.51,0.423073]
[1726840051574,23.902374,147.56,147.51,0.423073]
[1726840051789,23.902374,147.54,147.51,0.423073]
[1726840051970,1.69492882,147.53,147.51,0.423073]
[1726840052473,1.69492882,147.53,147.48,0.0686858]
[1726840052474,30.192474,147.52,147.48,0.0686858]
[1726840052680,15.5594,147.49,147.48,0.0686858]
[1726840052974,30.557384,147.48,147.43,0.423073]
[1726840053174,23.902374,147.45,147.43,0.423073]
[1726840053351,1.69592842,147.44,147.43,0.423073]
[1726840053778,1.69593109,147.45,147.43,0.423073]
[1726840053955,6.6005,147.46,147.43,0.423073]
[1726840055570,1.69560101,147.45,147.43,0.423073]
[1726840056262,6.72599,147.46,147.43,0.423073]
[1726840056576,6.6005,147.46,147.43,0.423073]
[1726840057467,15.5594,147.49,147.43,0.423073]
[1726840057852,17.25465561,147.49,147.43,0.423073]
[1726840058177,15.5594,147.49,147.43,0.423073]
[1726840058480,1.69528064,147.48,147.43,0.423073]
[1726840058660,22.3395,147.49,147.43,0.423073]
[1726840058865,15.5594,147.49,147.43,0.423073]
[1726840060680,15.5594,147.49,147.43,20.423073]
[1726840061057,15.2553,147.53,147.44,23.776884]
[1726840061754,1.69492675,147.52,147.44,23.776884]
[1726840062183,16.95022708,147.53,147.45,20.12549]
[1726840062355,13.53844194,147.54,147.47,20.0]
[1726840062356,7.05584194,147.54,147.47,20.0]
[1726840062553,1.6946286,147.56,147.47,20.0]
[1726840062785,1.6946286,147.56,147.46,23.776884]
[1726840063088,8.4715286,147.56,147.45,43.902374]
[1726840063378,1.69475471,147.55,147.45,43.902374]
[1726840063676,1.69479398,147.55,147.45,43.902374]
[1726840064680,23.902374,147.56,147.45,43.902374]
[1726840064886,1.69475538,147.55,147.45,43.902374]
[1726840065185,23.902374,147.54,147.45,20.0]
[1726840065362,1.69497262,147.53,147.45,20.0]
[1726840065566,8.47317262,147.53,147.44,0.2434382]
[1726840066065,16.2099,147.57,147.44,81.14254108]
[1726840066283,8.47195684,147.56,147.44,81.14254108]
[1726840066584,1.69475684,147.56,147.44,81.14254108]
[1726840066785,23.902374,147.56,147.44,81.14254108]
[1726840066990,1.69474631,147.55,147.45,23.902374]
[1726840067356,23.902374,147.56,147.46,20.0]
[1726840067580,16.2099,147.57,147.47,25.13268096]
[1726840067784,16.2099,147.57,147.47,56.03178384]
[1726840068101,16.2099,147.57,147.49,23.776884]
[1726840068493,16.2099,147.57,147.48,20.0]
[1726840068494,17.9042788,147.57,147.48,20.0]
[1726840068678,16.2099,147.57,147.49,23.776884]
[1726840069489,7.0497971,147.6,147.52,20.0]
[1726840069793,1.6940697,147.59,147.52,20.0]
[1726840070106,23.75502857,147.61,147.52,20.0]
[1726840070308,1.69412341,147.6,147.52,20.0]
[1726840070882,23.75502857,147.61,147.52,20.0]
[1726840071085,23.75502857,147.61,147.53,54.67598688]
[1726840071289,0.0596237,147.61,147.54,6.115]
[1726840073703,0.0596237,147.61,147.55,23.776884]
[1726840074108,0.0596237,147.61,147.56,0.12549]
[1726840074485,0.0596237,147.61,147.57,23.776884]
[1726840074988,0.0596237,147.61,147.59,54.67598688]
[1726840075195,0.0596237,147.61,147.6,1.35460386]
[1726840075485,0.0596237,147.61,147.59,30.89910288]
[1726840076212,0.0596237,147.61,147.6,20.0]
[1726840076386,0.0596237,147.61,147.6,95.25684675]
[1726840076710,0.3030619,147.66,147.61,0.12549]
[1726840076880,0.3030619,147.66,147.6,43.776884]
[1726840077494,0.3030619,147.66,147.62,30.89910288]
[1726840077693,0.3030619,147.66,147.62,20.0]
[1726840077883,1.56470475,147.7,147.61,6.5018]
[1726840078208,1.56470475,147.7,147.59,30.89910288]
[1726840078392,15.3521,147.71,147.57,56.5018]
[1726840078592,22.1225,147.71,147.57,56.5018]
[1726840078798,22.1225,147.71,147.59,50.0]
[1726840079002,1.69304893,147.7,147.57,56.5018]
[1726840079393,22.1225,147.71,147.57,56.5018]
[1726840079739,15.3521,147.71,147.62,23.776884]
[1726840080014,15.3521,147.71,147.64,23.776884]
[1726840080206,15.3521,147.71,147.64,73.776884]
[1726840080507,0.406108,147.73,147.64,73.776884]
[1726840080707,2.09879008,147.73,147.64,23.776884]
[1726840080907,2.09879008,147.73,147.64,73.776884]
[1726840081086,2.09878927,147.73,147.64,23.776884]
[1726840081405,0.12549,147.72,147.63,20.0]
[1726840081591,8.46284818,147.71,147.62,20.0]
[1726840081993,1.69284818,147.71,147.61,30.89910288]
[1726840082199,0.12549,147.72,147.62,50.0]
[1726840082505,0.406108,147.73,147.64,50.0]
[1726840082707,0.406108,147.73,147.65,20.0]
[1726840082912,23.776884,147.72,147.62,20.0]
[1726840083115,1.69290805,147.71,147.62,70.0]
[1726840084509,1.69286864,147.7,147.62,70.0]
[1726840084720,0.406108,147.73,147.64,70.0]
[1726840085214,6.7699,147.72,147.61,31.02459288]
[1726840085417,1.69292803,147.71,147.61,30.89910288]
[1726840085718,6.7714,147.68,147.58,87.49309894]
[1726840085919,1.69292803,147.71,147.57,6.5018]
[1726840085920,24.98467969,147.67,147.57,6.5018]
[1726840086225,18.21277969,147.67,147.57,6.5018]
[1726840086411,24.98467969,147.67,147.57,6.5018]
[1726840086723,6.7735,147.64,147.55,30.89910288]
[1726840087020,30.675274,147.65,147.54,50.0]
[1726840087218,30.675174,147.65,147.55,30.0]
[1726840087605,6.774,147.63,147.53,6.6737619]
[1726840087825,8.4682571,147.62,147.53,0.3030619]
[1726840088020,23.902374,147.62,147.53,0.3030619]
[1726840088214,6.0223,147.66,147.53,0.3030619]
[1726840088424,0.12549,147.63,147.53,0.3030619]
[1726840088718,6.7741,147.62,147.53,0.3030619]
[1726840088919,8.4688922,147.61,147.53,0.3030619]
[1726840089123,23.902374,147.6,147.53,0.3030619]
[1726840089323,15.8493,147.59,147.53,0.3030619]
[1726840089825,6.7732,147.64,147.53,0.3030619]
[1726840090037,25.4708018,147.63,147.53,0.3030619]
[1726840090523,0.12549,147.64,147.54,70.0]
[1726840090908,1.81925989,147.64,147.54,70.0]
[1726840091236,1.31925989,147.64,147.54,70.0]
[1726840091728,8.09285989,147.64,147.54,20.0]
[1726840091909,23.776884,147.64,147.54,20.0]
[1726840092421,15.8493,147.65,147.54,20.0]
[1726840092632,22.6221,147.65,147.54,20.0]
[1726840093208,22.6221,147.65,147.55,50.0]
[1726840093418,22.91345179,147.65,147.55,50.0]
[1726840093620,22.91345179,147.65,147.56,23.776884]
[1726840093821,15.8493,147.65,147.57,20.0]
[1726840094019,15.8493,147.65,147.57,100.89910288]
[1726840094351,15.8493,147.65,147.57,80.89910288]
[1726840094352,17.54269595,147.65,147.57,80.89910288]
[1726840094831,24.31579595,147.65,147.55,0.12549]
[1726840095133,17.54269595,147.65,147.54,23.776884]
[1726840095300,17.54269595,147.65,147.55,20.0]
[1726840095504,23.902374,147.64,147.55,20.0]